{"text_format":"1","workbook":"xlsx","n_sheets":1,"sheets":["Sheet1"],"not_rendered":{"charts":0,"images":0,"macros":0,"external_links":0,"defined_names":1,"comments":0,"pivot_tables":0},"unopened":[],"bounds":{"document_bytes":16777216,"sheet_cells":100000,"rows_first":2000,"rows_last":500,"rows_between":2000,"halvings":0,"cell_chars":16384,"cell_head_chars":4096},"cells_cut":0,"cells_raw":0,"read":"whole","date_system":"1900"}

{"sheet":"Sheet1","index":0,"n_rows":115,"n_cols":37,"rows_kept":115,"cut":false,"hidden":false,"merged":[[38,16,39,16],[40,16,41,16],[38,14,39,14],[40,14,41,14],[42,14,43,14],[44,14,45,14],[46,14,47,14],[48,14,49,14],[50,14,51,14],[52,14,53,14],[54,14,55,14],[42,16,43,16],[44,16,45,16],[50,10,51,10],[52,10,53,10],[54,10,55,10],[56,10,57,10],[58,10,59,10],[40,10,41,10],[42,10,43,10],[44,10,45,10],[46,10,47,10],[48,10,49,10],[56,16,57,16],[58,16,59,16],[56,14,57,14],[58,14,59,14],[46,16,47,16],[48,16,49,16],[50,16,51,16],[52,16,53,16],[54,16,55,16],[38,0,39,0],[38,1,39,1],[38,6,38,7],[39,6,39,7],[34,10,35,10],[36,10,37,10],[38,10,39,10],[56,0,57,0],[56,1,57,1],[56,6,56,7],[57,6,57,7],[48,0,49,0],[48,1,49,1],[48,6,48,7],[49,6,49,7],[50,0,51,0],[50,1,51,1],[50,6,50,7],[51,6,51,7],[44,0,45,0],[44,1,45,1],[44,6,44,7],[45,6,45,7],[46,0,47,0],[58,0,59,0],[58,1,59,1],[58,6,58,7],[59,6,59,7],[52,0,53,0],[52,1,53,1],[52,6,52,7],[53,6,53,7],[54,0,55,0],[54,1,55,1],[54,6,54,7],[55,6,55,7],[46,1,47,1],[46,6,46,7],[47,6,47,7],[40,0,41,0],[40,1,41,1],[40,6,40,7],[41,6,41,7],[42,0,43,0],[42,1,43,1],[42,6,42,7],[43,6,43,7],[33,35,33,36],[34,0,35,0],[34,1,35,1],[34,6,34,7],[35,6,35,7],[33,13,33,14],[36,0,37,0],[36,1,37,1],[36,6,36,7],[37,6,37,7],[34,16,35,16],[36,14,37,14],[34,14,35,14],[36,16,37,16],[0,0,0,12],[25,1,25,11],[27,1,27,11],[28,1,28,12],[31,1,31,12],[32,2,32,12],[33,6,33,7],[21,11,23,12],[23,2,23,6],[4,11,4,12],[5,11,6,12],[19,1,19,9],[20,1,20,2],[20,3,20,6],[20,11,20,12],[21,1,22,2],[21,3,22,6],[21,7,22,7],[21,8,22,8],[21,9,22,9]]}
["第４１回　緑区混合ダブルス大会　　参加申込書"]
[]
[]
[]
[null,"開催日","： 令和８年１月１１日(日)",null,null,null,null,null,null,null,null,"受付NO"]
[null,"申込期間 ","：令和７年　１１月１６日（日）午前９時　～　１２月１４日(日)　午後６時まで"]
[null,"会　場","： 緑スポーツセンター"]
[null,"申込先","： 緑区バドミントン協会　運営委員会　副委員長　佐々木　卓　宛",null,null,null,null,null,null,null,null,"　※協会が記載するので空欄で"]
[null,"問合先","：　yokohamamidoribadkyokai@gmail.com"]
[]
[]
[null,"下記をチーム内に周知願います"]
[null,"①　当日体調不良が見られた方は出場を辞退してください"]
[null,"②　応援の方も室内履き着用してください"]
[null,"③　年齢別の部はペア共に令和７年４月１日時点でペア合計１００歳以上、１１０歳以上、１２０歳以上の場合エントリー可"]
[null,"　　   年齢別の部の最低年齢は　４０歳（合算１００）、45歳（１１０）、５０歳（１２０）とする。"]
[null,"④　初級者の部はペア両名が経験年数５年以内の選手のみとします。"]
[null,"⑤　組み合わせ会議１２月21日（日）９時３０分から　白山地区センター２階　中会議室　（緑区登録クラブチームのみ）"]
[null,"※　参加費の集金をしますので必ずクラブから１名参加願います（緑区登録クラブチームのみ）"]
[]
[null,"クラブ名",null,"申込責任者",null,null,null,"協会員参加費","協会外参加費","申込組数",null,"合計金額"]
[null,null,null,null,null,null,null,"2000円/1人","2300円/1人",{"$f":"COUNTA(B41:B60)","v":0},null,{"$f":"SUM(M41:M60)+(J24*200)","v":0}]
[]
[null,"申込責任者TEL",null,null,null,null,null,null,"新規登録 200円",{"$f":"COUNTA(L41:L60)","v":0}]
[]
[null,"①　登録状況欄で「協会員」か「非協会員」を選選択してください"]
[null,"②　協会員でも緑区登録クラブ名以外でエントリーの場合は「非協会員（参加費 2300円）」扱いとなりますのでご注意下さい"]
[null,"③　「名前」「ふりがな」を入力する時に「苗字」と「名前」の間に必ず全角スペースを入れてください"]
[null,"　　※「選手」「ふりがな」が黄色い場合は全角スペースが入っていませんので全角スペースを入れてください"]
[null,"④　非協会員の方は参加費「2300円」のみです。新規登録の必要はありません"]
[]
[]
[null,"＜出場者＞","年齢別の部に出場の方は必ず生年月日を入力して下さい"]
["No.","部","名前","ふりがな","登録状況","緑区在住・在勤・在学","チーム名\n全角で入力して下さい\n非協会員の方は「協会外」と記載してください",null,"壮年の部のみ\n生年月日\n西暦(yyyy/mm/dd)","年齢","合計","新規登録","参加費","年齢別参加資格\n判定用",null,null,null,null,null,null,null,null,null,null,null,null,null,null,null,null,null,null,null,null,null,"緑区クラブチーム名"]
["例","１部","山田　太郎","やまだ　たろう","協会員","在住","TEAM KO-KI",null,null,null,null,null,{"$f":"IF(AD35=\"OK\",IF(AC35=\"協会員\",2000,2300))","v":2000},null,null,null,{"$f":"_xlfn.IFS(B35=\"合算１２０歳\",120,B35=\"合算１１０歳\",110,B35=\"合算１００歳\",100)","v":{"$error":"#N/A"}},null,null,null,null,null,null,null,null,null,null,null,{"$f":"E35","v":"協会員"},{"$f":"IF(C35=\"\",\"☆\",\"OK\")","v":"OK"},"在住",null,null,null,null,"GTM","竹山"]
[null,null,"鈴木　緑","すずき　みどり","非協会員","在住","協会外",null,null,null,null,null,2300,null,null,null,null,null,null,null,null,null,null,null,null,null,null,null,"非協会員","OK","在勤",null,null,null,null,"K7","テルサMIHO"]
["例","合算１２０歳","山田　次郎","やまだ　じろう","協会員","非該当","山下",null,"1970-02-28",{"$f":"IF(I37<>\"\",DATEDIF(I37,DATEVALUE(\"2025/4/1\"),\"Y\"),\"\")","v":55},{"$f":"J37+J38","v":120},null,2000,{"$f":"IF(J37>=R37, \"〇\", \"×\")","v":"〇"},{"$f":"_xlfn.IFS(K37=Q37,\"〇\",K37>Q37,\"〇\",K37<Q37,\"×\")","v":"〇"},null,{"$f":"_xlfn.IFS(B37=\"合算１２０歳\",120,B37=\"合算１１０歳\",110,B37=\"合算１００歳\",100)","v":120},{"$f":"_xlfn.IFS(Q37=100,40,Q37=110,45,Q37=120,50)","v":50},null,null,null,null,null,null,null,null,null,null,"協会員","OK","在学",null,null,null,null,"R＆S","テルサMIHOⅡ"]
[null,null,"鈴木　夢子","すずき　ゆめこ","協会員","在住","テルサMIHO",null,"1959/7/7",65,null,"◎",2000,"〇",null,null,null,{"$f":"R37","v":50},null,null,null,null,null,null,null,null,null,null,"協会員","OK","非該当",null,null,null,null,"ｒｍ＊","テルサMIHOⅢ"]
["例","合算１００歳","山田　三郎","やまだ　じろう","協会員","在勤","長津田A",null,"1985-02-28",40,{"$f":"J39+J40","v":103},null,2000,"〇",{"$f":"_xlfn.IFS(K39=Q39,\"〇\",K39>Q39,\"〇\",K39<Q39,\"×\")","v":"〇"},null,{"$f":"_xlfn.IFS(B39=\"合算１２０歳\",120,B39=\"合算１１０歳\",110,B39=\"合算１００歳\",100)","v":100},{"$f":"_xlfn.IFS(Q39=100,40,Q39=110,45,Q39=120,50)","v":40},null,null,null,null,null,null,null,null,null,null,"協会員","OK","在学",null,null,null,null,"R＆S","テルサMIHOⅡ"]
[null,null,"鈴木　花子","すずき　はなこ","協会員","非該当","長津田",null,"1961/7/7",63,null,null,2000,"〇",null,null,null,{"$f":"R39","v":40},null,null,null,null,null,null,null,null,null,null,"協会員","OK","非該当",null,null,null,null,"ｒｍ＊","テルサMIHOⅢ"]
[1,null,null,null,null,null,null,null,null,"",{"$f":"J41+J42","v":{"$error":"#VALUE!"}},null,{"$f":"IF(AD41=\"OK\",IF(AC41=\"協会員\",2000,2300))","v":false},{"$error":"#N/A"},{"$f":"_xlfn.IFS(K41=Q41,\"〇\",K41>Q41,\"〇\",K41<Q41,\"×\")","v":{"$error":"#VALUE!"}},null,{"$f":"_xlfn.IFS(B41=\"合算１２０歳\",120,B41=\"合算１１０歳\",110,B41=\"合算１００歳\",100)","v":{"$error":"#N/A"}},{"$f":"_xlfn.IFS(Q41=100,40,Q41=110,45,Q41=120,50)","v":{"$error":"#N/A"}},null,null,null,null,null,null,null,null,null,null,0,"☆",null,null,null,null,null,"rush!","長津田"]
[null,null,null,null,null,null,null,null,null,"",null,null,false,{"$error":"#N/A"},null,null,null,{"$f":"R41","v":{"$error":"#N/A"}},null,null,null,null,null,null,null,null,null,null,0,"☆",null,null,null,null,null,"TEAM KO-KI","長津田A"]
[2,null,null,null,null,null,null,null,null,"",{"$f":"J43+J44","v":{"$error":"#VALUE!"}},null,false,{"$error":"#N/A"},{"$f":"_xlfn.IFS(K43=Q43,\"〇\",K43>Q43,\"〇\",K43<Q43,\"×\")","v":{"$error":"#VALUE!"}},null,{"$f":"_xlfn.IFS(B43=\"合算１２０歳\",120,B43=\"合算１１０歳\",110,B43=\"合算１００歳\",100)","v":{"$error":"#N/A"}},{"$f":"_xlfn.IFS(Q43=100,40,Q43=110,45,Q43=120,50)","v":{"$error":"#N/A"}},null,null,null,null,null,null,null,null,null,null,0,"☆",null,null,null,null,null,"twinkle","日南"]
[null,null,null,null,null,null,null,null,null,"",null,null,false,{"$error":"#N/A"},null,null,null,{"$f":"R43","v":{"$error":"#N/A"}},null,null,null,null,null,null,null,null,null,null,0,"☆",null,null,null,null,null,"エスケープ","日南A"]
[3,null,null,null,null,null,null,null,null,"",{"$f":"J45+J46","v":{"$error":"#VALUE!"}},null,false,{"$error":"#N/A"},{"$f":"_xlfn.IFS(K45=Q45,\"〇\",K45>Q45,\"〇\",K45<Q45,\"×\")","v":{"$error":"#VALUE!"}},null,{"$f":"_xlfn.IFS(B45=\"合算１２０歳\",120,B45=\"合算１１０歳\",110,B45=\"合算１００歳\",100)","v":{"$error":"#N/A"}},{"$f":"_xlfn.IFS(Q45=100,40,Q45=110,45,Q45=120,50)","v":{"$error":"#N/A"}},null,null,null,null,null,null,null,null,null,null,0,"☆",null,null,null,null,null,"エスケープダッシュ","ビリケン"]
[null,null,null,null,null,null,null,null,null,"",null,null,false,{"$error":"#N/A"},null,null,null,{"$f":"R45","v":{"$error":"#N/A"}},null,null,null,null,null,null,null,null,null,null,0,"☆",null,null,null,null,null,"オールディーズ","ビリケンB"]
[4,null,null,null,null,null,null,null,null,"",{"$f":"J47+J48","v":{"$error":"#VALUE!"}},null,false,{"$error":"#N/A"},{"$f":"_xlfn.IFS(K47=Q47,\"〇\",K47>Q47,\"〇\",K47<Q47,\"×\")","v":{"$error":"#VALUE!"}},null,{"$f":"_xlfn.IFS(B47=\"合算１２０歳\",120,B47=\"合算１１０歳\",110,B47=\"合算１００歳\",100)","v":{"$error":"#N/A"}},{"$f":"_xlfn.IFS(Q47=100,40,Q47=110,45,Q47=120,50)","v":{"$error":"#N/A"}},null,null,null,null,null,null,null,null,null,null,0,"☆",null,null,null,null,null,"ぐーす","ファンタジー"]
[null,null,null,null,null,null,null,null,null,"",null,null,false,{"$error":"#N/A"},null,null,null,{"$f":"R47","v":{"$error":"#N/A"}},null,null,null,null,null,null,null,null,null,null,0,"☆",null,null,null,null,null,"さぼてん","山下"]
[5,null,null,null,null,null,null,null,null,"",{"$f":"J49+J50","v":{"$error":"#VALUE!"}},null,false,{"$error":"#N/A"},{"$f":"_xlfn.IFS(K49=Q49,\"〇\",K49>Q49,\"〇\",K49<Q49,\"×\")","v":{"$error":"#VALUE!"}},null,{"$f":"_xlfn.IFS(B49=\"合算１２０歳\",120,B49=\"合算１１０歳\",110,B49=\"合算１００歳\",100)","v":{"$error":"#N/A"}},{"$f":"_xlfn.IFS(Q49=100,40,Q49=110,45,Q49=120,50)","v":{"$error":"#N/A"}},null,null,null,null,null,null,null,null,null,null,0,"☆",null,null,null,null,null,"スマートショット","ライト2ホワイト"]
[null,null,null,null,null,null,null,null,null,"",null,null,false,{"$error":"#N/A"},null,null,null,{"$f":"R49","v":{"$error":"#N/A"}},null,null,null,null,null,null,null,null,null,null,0,"☆",null,null,null,null,null,"スローエスケープ","ライト3ホワイト"]
[6,null,null,null,null,null,null,null,null,"",{"$f":"J51+J52","v":{"$error":"#VALUE!"}},null,false,{"$error":"#N/A"},{"$f":"_xlfn.IFS(K51=Q51,\"〇\",K51>Q51,\"〇\",K51<Q51,\"×\")","v":{"$error":"#VALUE!"}},null,{"$f":"_xlfn.IFS(B51=\"合算１２０歳\",120,B51=\"合算１１０歳\",110,B51=\"合算１００歳\",100)","v":{"$error":"#N/A"}},{"$f":"_xlfn.IFS(Q51=100,40,Q51=110,45,Q51=120,50)","v":{"$error":"#N/A"}},null,null,null,null,null,null,null,null,null,null,0,"☆",null,null,null,null,null,"第三山下","ライトホワイト"]
[null,null,null,null,null,null,null,null,null,"",null,null,false,{"$error":"#N/A"},null,null,null,{"$f":"R51","v":{"$error":"#N/A"}},null,null,null,null,null,null,null,null,null,null,0,"☆",null,null,null,null,null,"第二山下","霧が丘"]
[7,null,null,null,null,null,null,null,null,"",{"$f":"J53+J54","v":{"$error":"#VALUE!"}},null,false,{"$error":"#N/A"},{"$f":"_xlfn.IFS(K53=Q53,\"〇\",K53>Q53,\"〇\",K53<Q53,\"×\")","v":{"$error":"#VALUE!"}},null,{"$f":"_xlfn.IFS(B53=\"合算１２０歳\",120,B53=\"合算１１０歳\",110,B53=\"合算１００歳\",100)","v":{"$error":"#N/A"}},{"$f":"_xlfn.IFS(Q53=100,40,Q53=110,45,Q53=120,50)","v":{"$error":"#N/A"}},null,null,null,null,null,null,null,null,null,null,0,"☆",null,null,null,null,null,"K7  East"]
[null,null,null,null,null,null,null,null,null,"",null,null,false,{"$error":"#N/A"},null,null,null,{"$f":"R53","v":{"$error":"#N/A"}},null,null,null,null,null,null,null,null,null,null,0,"☆"]
[8,null,null,null,null,null,null,null,null,"",{"$f":"J55+J56","v":{"$error":"#VALUE!"}},null,false,{"$error":"#N/A"},{"$f":"_xlfn.IFS(K55=Q55,\"〇\",K55>Q55,\"〇\",K55<Q55,\"×\")","v":{"$error":"#VALUE!"}},null,{"$f":"_xlfn.IFS(B55=\"合算１２０歳\",120,B55=\"合算１１０歳\",110,B55=\"合算１００歳\",100)","v":{"$error":"#N/A"}},{"$f":"_xlfn.IFS(Q55=100,40,Q55=110,45,Q55=120,50)","v":{"$error":"#N/A"}},null,null,null,null,null,null,null,null,null,null,0,"☆"]
[null,null,null,null,null,null,null,null,null,"",null,null,false,{"$error":"#N/A"},null,null,null,{"$f":"R55","v":{"$error":"#N/A"}},null,null,null,null,null,null,null,null,null,null,0,"☆"]
[9,null,null,null,null,null,null,null,null,"",{"$f":"J57+J58","v":{"$error":"#VALUE!"}},null,false,{"$error":"#N/A"},{"$f":"_xlfn.IFS(K57=Q57,\"〇\",K57>Q57,\"〇\",K57<Q57,\"×\")","v":{"$error":"#VALUE!"}},null,{"$f":"_xlfn.IFS(B57=\"合算１２０歳\",120,B57=\"合算１１０歳\",110,B57=\"合算１００歳\",100)","v":{"$error":"#N/A"}},{"$f":"_xlfn.IFS(Q57=100,40,Q57=110,45,Q57=120,50)","v":{"$error":"#N/A"}},null,null,null,null,null,null,null,null,null,null,0,"☆"]
[null,null,null,null,null,null,null,null,null,"",null,null,false,{"$error":"#N/A"},null,null,null,{"$f":"R57","v":{"$error":"#N/A"}},null,null,null,null,null,null,null,null,null,null,0,"☆"]
[10,null,null,null,null,null,null,null,null,"",{"$f":"J59+J60","v":{"$error":"#VALUE!"}},null,false,{"$error":"#N/A"},{"$f":"_xlfn.IFS(K59=Q59,\"〇\",K59>Q59,\"〇\",K59<Q59,\"×\")","v":{"$error":"#VALUE!"}},null,{"$f":"_xlfn.IFS(B59=\"合算１２０歳\",120,B59=\"合算１１０歳\",110,B59=\"合算１００歳\",100)","v":{"$error":"#N/A"}},{"$f":"_xlfn.IFS(Q59=100,40,Q59=110,45,Q59=120,50)","v":{"$error":"#N/A"}},null,null,null,null,null,null,null,null,null,null,0,"☆"]
[null,null,null,null,null,null,null,null,null,"",null,null,false,{"$error":"#N/A"},null,null,null,{"$f":"R59","v":{"$error":"#N/A"}},null,null,null,null,null,null,null,null,null,null,0,"☆"]
[]
[]
[]
[]
[]
[]
[null,null,null,null,null,null,null,null,null,null,null,null,null,null,null,null,"１部","男性1部","◎","男子・長津田A"]
[null,null,null,null,null,null,null,null,null,null,null,null,null,null,null,null,"２部","男性2部",null,"男子・ビリケン"]
[null,null,null,null,null,null,null,null,null,null,null,null,null,null,null,null,"３部","男性3部",null,"男子・長津田"]
[null,null,null,null,null,null,null,null,null,null,null,null,null,null,null,null,"初級者","男性4部",null,"男子・山下"]
[null,null,null,null,null,null,null,null,null,null,null,null,null,null,null,null,"合算１００歳","男性壮年６０",null,"男子・TEAM KO-KI"]
[null,null,null,null,null,null,null,null,null,null,null,null,null,null,null,null,"合算１１０歳","男性壮年７０",null,"男子・エスケープ"]
[null,null,null,null,null,null,null,null,null,null,null,null,null,null,null,null,"合算１２０歳","女性1部","混合1部","男子・テルサMIHO"]
[null,null,null,null,null,null,null,null,null,null,null,null,null,null,null,null,null,"女性2部","混合4部","男子・rush!"]
[null,null,null,null,null,null,null,null,null,null,null,null,null,null,null,null,null,"女性3部",null,"男子・ぐーす"]
[null,null,null,null,null,null,null,null,null,null,null,null,null,null,null,null,null,"女性4部",null,"男子・第三山下"]
[null,null,null,null,null,null,null,null,null,null,null,null,null,null,null,null,null,"壮年女性６０",null,"男子・テルサMIHOⅡ"]
[null,null,null,null,null,null,null,null,null,null,null,null,null,null,null,null,null,"壮年女性７０",null,"男子・GTM"]
[null,null,null,null,null,null,null,null,null,null,null,null,null,null,null,null,null,null,null,"男子・スマートショット"]
[null,null,null,null,null,null,null,null,null,null,null,null,null,null,null,null,null,null,null,"男子・霧が丘"]
[null,null,null,null,null,null,null,null,null,null,null,null,null,null,null,null,null,null,null,"男子・エスケープダッシュ"]
[null,null,null,null,null,null,null,null,null,null,null,null,null,null,null,null,null,null,null,"男子・ビリケンB"]
[null,null,null,null,null,null,null,null,null,null,null,null,null,null,null,null,null,null,null,"男子・ライトホワイト"]
[null,null,null,null,null,null,null,null,null,null,null,null,null,null,null,null,null,null,null,"男子・日南"]
[null,null,null,null,null,null,null,null,null,null,null,null,null,null,null,null,null,null,null,"男子・第二山下"]
[null,null,null,null,null,null,null,null,null,null,null,null,null,null,null,null,null,null,null,"男子・K7　West"]
[null,null,null,null,null,null,null,null,null,null,null,null,null,null,null,null,null,null,null,"男子・テルサMIHOⅢ"]
[null,null,null,null,null,null,null,null,null,null,null,null,null,null,null,null,null,null,null,"男子・竹山"]
[null,null,null,null,null,null,null,null,null,null,null,null,null,null,null,null,null,null,null,"男子・ｒｍ＊"]
[null,null,null,null,null,null,null,null,null,null,null,null,null,null,null,null,null,null,null,"男子・さぼてん"]
[null,null,null,null,null,null,null,null,null,null,null,null,null,null,null,null,null,null,null,"男子・オールディーズ"]
[null,null,null,null,null,null,null,null,null,null,null,null,null,null,null,null,null,null,null,"男子・R＆S"]
[null,null,null,null,null,null,null,null,null,null,null,null,null,null,null,null,null,null,null,"男子・ライト3ホワイト"]
[null,null,null,null,null,null,null,null,null,null,null,null,null,null,null,null,null,null,null,"男子・ライト2ホワイト"]
[null,null,null,null,null,null,null,null,null,null,null,null,null,null,null,null,null,null,null,"女子・エスケープ"]
[null,null,null,null,null,null,null,null,null,null,null,null,null,null,null,null,null,null,null,"女子・rush!"]
[null,null,null,null,null,null,null,null,null,null,null,null,null,null,null,null,null,null,null,"女子・長津田A"]
[null,null,null,null,null,null,null,null,null,null,null,null,null,null,null,null,null,null,null,"女子・日南A"]
[null,null,null,null,null,null,null,null,null,null,null,null,null,null,null,null,null,null,null,"女子・山下"]
[null,null,null,null,null,null,null,null,null,null,null,null,null,null,null,null,null,null,null,"女子・テルサMIHO"]
[null,null,null,null,null,null,null,null,null,null,null,null,null,null,null,null,null,null,null,"女子・ファンタジー"]
[null,null,null,null,null,null,null,null,null,null,null,null,null,null,null,null,null,null,null,"女子・twinkle"]
[null,null,null,null,null,null,null,null,null,null,null,null,null,null,null,null,null,null,null,"女子・スローエスケープ"]
[null,null,null,null,null,null,null,null,null,null,null,null,null,null,null,null,null,null,null,"女子・オールディーズ"]
[null,null,null,null,null,null,null,null,null,null,null,null,null,null,null,null,null,null,null,"女子・ライトホワイト"]
[null,null,"１部","協会員",null,null,null,null,null,null,null,null,null,null,null,null,null,null,null,"女子・日南B"]
[null,null,"２部","非協会員",null,null,null,null,null,null,null,null,null,null,null,null,null,null,null,"女子・第二山下"]
[null,null,"３部",null,null,null,null,null,null,null,null,null,null,null,null,null,null,null,null,"女子・ｒｍ＊"]
[null,null,"４部",null,null,null,null,null,null,null,null,null,null,null,null,null,null,null,null,"女子・鴨居"]
[null,null,null,null,null,null,null,null,null,null,null,null,null,null,null,null,null,null,null,"女子・K7"]
[null,null,null,null,null,null,null,null,null,null,null,null,null,null,null,null,null,null,null,"女子・竹山"]
[null,null,"女性１部",null,null,null,null,null,null,null,null,null,null,null,null,null,null,null,null,"女子・テルサMIHO女子Ⅱ"]
[null,null,"女性２部",null,null,null,null,null,null,null,null,null,null,null,null,null,null,null,null,"女子・R＆S"]
[null,null,"女性３部",null,null,null,null,null,null,null,null,null,null,null,null,null,null,null,null,"女子・ライト2ホワイト"]
[null,null,"女性４部",null,null,null,null,null,null,null,null,null,null,null,null,null,null,null,null,"協会外"]